[Event "SWE-ch Class 1 2019"]
[Site "Eskilstuna"]
[Date "2019.07.14"]
[Round "7.4"]
[White "Nordstrom, Felix"]
[Black "Kardell, Mathias"]
[Result "1/2-1/2"]
[ECO "A84"]
[WhiteElo "2064"]
[BlackElo "2064"]
[Annotator "NA"]
[PlyCount "60"]
[EventDate "2019.07.06"]
[EventType "tourn"]
[EventCountry "SWE"]
[SourceTitle "playchess.com"]
[Source "ChessBase"]
[SourceQuality "1"]
[TimeControl "40/5400+30:1800+30"]

1. d4 {[%emt 0:00:00]} d5 {[%emt 0:00:00]} 2. c4 {[%emt 0:00:00]} e6 {[%emt 0:00:00]} 3. Nc3 {[%emt 0:01:29]} c6 {[%emt 0:00:09]} 4. e3 {[%emt 0:01:37]} f5 {[%emt 0:01:57]} 5. Bd3 {[%emt 0:01:15]} Nf6 {[%emt 0:01:00]} 6. Nge2 {[%emt 0:00:59]} Bd6 {[%emt 0:02:42]} 7. O-O {[%emt 0:06:36]} O-O {[%emt 0:00:36]} 8. f3 {[%emt 0:01:08]} Qc7 {[%emt 0:20:15]} 9. g3 {[%emt 0:06:04]} Qf7 {[%emt 0:21:14]} 10. Bd2 {[%emt 0:11:19]} Kh8 {[%emt 0:15:46]} 11. e4 {[%emt 0:17:45]} dxe4 {[%emt 0:01:07]} 12. fxe4 {[%emt 0:00:23]} Qh5 {[%emt 0:04:04]} 13. Kg2 {[%emt 0:04:15]} fxe4 {[%emt 0:12:53]} 14. Nxe4 {[%emt 0:11:22]} Nxe4 {[%emt 0:01:17]} 15. Bxe4 {[%emt 0:07:44]} e5 {[%emt 0:01:46]} 16. Rxf8+ {[%emt 0:02:22]} Bxf8 {[%emt 0:00:05]} 17. Bf3 {[%emt 0:04:02]} Bh3+ {[%emt 0:01:35]} 18. Kf2 {[%emt 0:00:04]} Qf7 {[%emt 0:00:49]} 19. Ng1 {[%emt 0:01:24]} Be6 {[%emt 0:01:48]} 20. dxe5 {[%emt 0:00:56]} Nd7 {[%emt 0:01:13]} 21. Bc3 {[%emt 0:01:44]} Bxc4 {[%emt 0:00:48]} 22. Kg2 {[%emt 0:00:52]} Bc5 {[%emt 0:02:42]} 23. Nh3 {[%emt 0:01:01]} Nb6 {[%emt 0:01:05]} 24. b3 {[%emt 0:01:38]} Nd5 {[%emt 0:01:31]} 25. Bd4 {[%emt 0:01:27]} Bf1+ {[%emt 0:03:11]} 26. Kxf1 {[%emt 0:04:04]} Bxd4 {[%emt 0:00:07]} 27. Qxd4 {[%emt 0:01:13]} Qxf3+ {[%emt 0:00:07]} 28. Kg1 {[%emt 0:05:57]} Ne3 {[%emt 0:01:21]} 29. Qd2 {[%emt 0:00:56]} Rf8 {[%emt 0:00:58]} 30. Qf2 {[%emt 0:01:40]} Kg8 {[%emt 0:01:49]} 1/2-1/2

[Event "SWE-ch Class 1 2019"]
[Site "Eskilstuna"]
[Date "2019.07.14"]
[Round "7.5"]
[White "Willinger, Tim"]
[Black "Muganlinskij, Hussein"]
[Result "1/2-1/2"]
[ECO "D90"]
[WhiteElo "2053"]
[BlackElo "2022"]
[Annotator "NA"]
[PlyCount "81"]
[EventDate "2019.07.06"]
[EventType "tourn"]
[EventCountry "SWE"]
[SourceTitle "playchess.com"]
[Source "ChessBase"]
[SourceQuality "1"]
[TimeControl "40/5400+30:1800+30"]

1. d4 {[%emt 0:00:00]} d5 {[%emt 0:00:00]} 2. c4 {[%emt 0:00:00]} c6 {[%emt 0:00:00]} 3. Nc3 {[%emt 0:00:00]} Nf6 {[%emt 0:00:00]} 4. cxd5 {[%emt 0:00:00]} cxd5 {[%emt 0:00:00]} 5. Bf4 {[%emt 0:00:00]} Nc6 {[%emt 0:00:17]} 6. e3 {[%emt 0:00:00]} g6 {[%emt 0:01:22]} 7. Bd3 {[%emt 0:00:24]} Bg7 {[%emt 0:00:18]} 8. h3 {[%emt 0:00:15]} O-O {[%emt 0:00:09]} 9. Nf3 {[%emt 0:00:05]} Nd7 {[%emt 0:01:57]} 10. Be2 {[%emt 0:05:05]} e5 {[%emt 0:09:52]} 11. dxe5 {[%emt 0:00:15]} Ndxe5 {[%emt 0:00:06]} 12. O-O {[%emt 0:09:01]} Nc4 {[%emt 0:03:58]} 13. Rc1 {[%emt 0:08:46]} Nxb2 {[%emt 0:04:26]} 14. Qxd5 {[%emt 0:05:15]} Be6 {[%emt 0:06:05]} 15. Qb5 {[%emt 0:04:17]} Qb6 {[%emt 0:00:22]} 16. Ng5 {[%emt 0:11:19]} Qxb5 {[%emt 0:06:03]} 17. Bxb5 {[%emt 0:04:07]} Bc4 {[%emt 0:01:17]} 18. Bxc4 {[%emt 0:00:58]} Nxc4 {[%emt 0:00:07]} 19. Nce4 {[%emt 0:06:58]} N6e5 {[%emt 0:07:39]} 20. Bxe5 {[%emt 0:09:01]} Nxe5 {[%emt 0:07:38]} 21. Rc7 {[%emt 0:00:22]} h6 {[%emt 0:00:30]} 22. Nf3 {[%emt 0:00:30]} Nxf3+ {[%emt 0:00:30]} 23. gxf3 {[%emt 0:00:30]} b5 {[%emt 0:00:30]} 24. Rd1 {[%emt 0:00:30]} Rfc8 {[%emt 0:00:30]} 25. Rb7 {[%emt 0:00:30]} Rcb8 {[%emt 0:00:30]} 26. Rdd7 {[%emt 0:00:30]} Rxb7 {[%emt 0:00:30]} 27. Rxb7 {[%emt 0:00:30]} a6 {[%emt 0:00:30]} 28. Nc5 {[%emt 0:00:30]} b4 {[%emt 0:00:30]} 29. f4 {[%emt 0:00:30]} a5 {[%emt 0:00:30]} 30. Nd7 {[%emt 0:00:30]} Bc3 {[%emt 0:00:30]} 31. Nb6 {[%emt 0:00:30]} Rd8 {[%emt 0:00:30]} 32. Ra7 {[%emt 0:00:30]} Kg7 {[%emt 0:00:30]} 33. Nd7 {[%emt 0:00:30]} a4 {[%emt 0:00:30]} 34. Nc5 {[%emt 0:00:30]} Rd1+ {[%emt 0:00:30]} 35. Kg2 {[%emt 0:00:30]} a3 {[%emt 0:00:30]} 36. Ne4 {[%emt 0:00:30]} Ra1 {[%emt 0:00:30]} 37. Nd6 {[%emt 0:00:30]} Rxa2 {[%emt 0:00:30]} 38. Rxf7+ {[%emt 0:00:30]} Kg8 {[%emt 0:00:30]} 39. Rb7 {[%emt 0:00:30]} Rd2 {[%emt 0:00:30]} 40. Nc4 {[%emt 0:00:30]} a2 {[%emt 0:00:30]} 41. Ra7 {[%emt 0:30:30]} 1/2-1/2

[Event "SWE-ch Class 1 2019"]
[Site "Eskilstuna"]
[Date "2019.07.14"]
[Round "7.6"]
[White "Arvidsson, Jonas"]
[Black "Thollin, Robert"]
[Result "0-1"]
[ECO "B08"]
[WhiteElo "1965"]
[BlackElo "1983"]
[Annotator "NA"]
[PlyCount "94"]
[EventDate "2019.07.06"]
[EventType "tourn"]
[EventCountry "SWE"]
[SourceTitle "playchess.com"]
[Source "ChessBase"]
[SourceQuality "1"]
[TimeControl "40/5400+30:1800+30"]

1. e4 {[%emt 0:00:00]} d6 {[%emt 0:02:45]} 2. d4 {[%emt 0:00:12]} Nf6 {[%emt 0:00:08]} 3. Nc3 {[%emt 0:00:14]} g6 {[%emt 0:00:06]} 4. Nf3 {[%emt 0:01:44]} Bg7 {[%emt 0:00:18]} 5. Be3 {[%emt 0:00:08]} O-O {[%emt 0:02:40]} 6. Qd2 {[%emt 0:01:19]} Nc6 {[%emt 0:17:07]} 7. d5 {[%emt 0:01:54]} Nb8 {[%emt 0:03:44]} 8. Bh6 {[%emt 0:01:48]} c6 {[%emt 0:02:03]} 9. O-O-O {[%emt 0:02:24]} Qa5 {[%emt 0:06:23]} 10. Kb1 {[%emt 0:05:56]} Re8 {[%emt 0:09:24]} 11. h4 {[%emt 0:07:35]} Bg4 {[%emt 0:03:53]} 12. h5 {[%emt 0:06:22]} Bxh5 {[%emt 0:06:13]} 13. Qg5 {[%emt 0:06:35]} Bh8 {[%emt 0:17:15]} 14. Rh4 {[%emt 0:08:35]} Bxf3 {[%emt 0:02:31]} 15. gxf3 {[%emt 0:00:14]} Nbd7 {[%emt 0:03:23]} 16. Qe3 {[%emt 0:06:17]} Rac8 {[%emt 0:02:11]} 17. f4 {[%emt 0:08:06]} Qb6 {[%emt 0:00:19]} 18. Qxb6 {[%emt 0:02:34]} Nxb6 {[%emt 0:00:32]} 19. Bh3 {[%emt 0:01:29]} Rcd8 {[%emt 0:02:27]} 20. dxc6 {[%emt 0:03:36]} bxc6 {[%emt 0:00:02]} 21. f5 {[%emt 0:00:16]} Rb8 {[%emt 0:07:43]} 22. fxg6 {[%emt 0:01:43]} hxg6 {[%emt 0:00:16]} 23. f4 {[%emt 0:02:21]} Nc4 {[%emt 0:03:46]} 24. b3 {[%emt 0:00:52]} Bg7 {[%emt 0:04:37]} 25. Kc1 {[%emt 0:09:18]} Bxh6 {[%emt 0:00:41]} 26. Rxh6 {[%emt 0:00:02]} Kg7 {[%emt 0:00:10]} 27. Rh4 {[%emt 0:00:11]} Nb6 {[%emt 0:00:16]} 28. e5 {[%emt 0:01:03]} dxe5 {[%emt 0:00:37]} 29. fxe5 {[%emt 0:00:09]} Nfd5 {[%emt 0:00:16]} 30. Nxd5 {[%emt 0:00:56]} cxd5 {[%emt 0:00:13]} 31. Rf4 {[%emt 0:03:04]} e6 {[%emt 0:00:53]} 32. Rdf1 {[%emt 0:02:23]} Re7 {[%emt 0:00:01]} 33. Re1 {[%emt 0:01:36]} Rh8 {[%emt 0:00:15]} 34. Bg2 {[%emt 0:02:01]} Rh5 {[%emt 0:00:31]} 35. c4 {[%emt 0:00:18]} Rc7 {[%emt 0:00:26]} 36. Bf1 {[%emt 0:01:24]} Nd7 {[%emt 0:00:28]} 37. Kb1 {[%emt 0:01:46]} dxc4 {[%emt 0:00:51]} 38. Bxc4 {[%emt 0:00:34]} Rxe5 {[%emt 0:00:38]} 39. Rh1 {[%emt 0:00:45]} Rh5 {[%emt 0:00:53]} 40. Rg1 {[%emt 0:01:56]} Nb6 {[%emt 0:00:22]} 41. Bd3 {[%emt 0:31:28]} Nd5 {[%emt 0:30:42]} 42. Rf2 {[%emt 0:01:18]} Rd7 {[%emt 0:01:40]} 43. Bc2 {[%emt 0:03:37]} f5 {[%emt 0:00:00]} 44. Re1 {[%emt 0:00:00]} Kf6 {[%emt 0:00:00]} 45. Kb2 {[%emt 0:00:00]} g5 {[%emt 0:00:00]} 46. Bd1 {[%emt 0:00:00]} Rh4 {[%emt 0:00:00]} 47. Rfe2 {[%emt 0:00:00]} Nf4 {[%emt 0:00:00]} 0-1

[Event "SWE-ch Class 1 2019"]
[Site "Eskilstuna"]
[Date "2019.07.14"]
[Round "7.7"]
[White "Magnussen, Pal"]
[Black "Jonsson, Krister"]
[Result "1-0"]
[ECO "C01"]
[WhiteElo "1985"]
[BlackElo "2068"]
[Annotator "NA"]
[PlyCount "59"]
[EventDate "2019.07.06"]
[EventType "tourn"]
[EventCountry "SWE"]
[SourceTitle "playchess.com"]
[Source "ChessBase"]
[SourceQuality "1"]
[TimeControl "40/5400+30:1800+30"]

1. e4 {[%emt 0:06:13]} e6 {[%emt 0:00:00]} 2. d4 {[%emt 0:00:41]} d5 {[%emt 0:00:03]} 3. exd5 {[%emt 0:00:15]} exd5 {[%emt 0:00:07]} 4. c4 {[%emt 0:00:09]} Nf6 {[%emt 0:01:12]} 5. Nf3 {[%emt 0:08:00]} Be7 {[%emt 0:01:05]} 6. Nc3 {[%emt 0:05:45]} O-O {[%emt 0:02:36]} 7. cxd5 {[%emt 0:02:22]} Nxd5 {[%emt 0:00:06]} 8. Bd3 {[%emt 0:02:10]} Nc6 {[%emt 0:05:00]} 9. O-O {[%emt 0:01:32]} Bg4 {[%emt 0:04:23]} 10. h3 {[%emt 0:05:29]} Be6 {[%emt 0:06:33]} 11. Bb1 {[%emt 0:11:55]} Nxc3 {[%emt 0:19:20]} 12. bxc3 {[%emt 0:00:31]} g6 {[%emt 0:00:27]} 13. Bf4 {[%emt 0:04:18]} Na5 {[%emt 0:01:49]} 14. Be4 {[%emt 0:14:06]} c6 {[%emt 0:13:28]} 15. Qc2 {[%emt 0:06:19]} Bd6 {[%emt 0:04:05]} 16. Bh6 {[%emt 0:04:17]} Re8 {[%emt 0:00:23]} 17. Rad1 {[%emt 0:02:56]} Nc4 {[%emt 0:07:38]} 18. Bd3 {[%emt 0:01:30]} Qa5 {[%emt 0:02:59]} 19. Rfe1 {[%emt 0:01:41]} Qh5 {[%emt 0:05:04]} 20. Qc1 {[%emt 0:03:14]} Bf8 {[%emt 0:07:01]} 21. Bxf8 {[%emt 0:00:42]} Kxf8 {[%emt 0:00:15]} 22. Rxe6 {[%emt 0:00:33]} Rxe6 {[%emt 0:01:07]} 23. Bxc4 {[%emt 0:00:15]} Re7 {[%emt 0:01:47]} 24. Qa3 {[%emt 0:02:24]} Rae8 {[%emt 0:00:17]} 25. Re1 {[%emt 0:00:57]} b5 {[%emt 0:03:11]} 26. Bb3 {[%emt 0:01:01]} Qf5 {[%emt 0:01:44]} 27. Rxe7 {[%emt 0:01:47]} Rxe7 {[%emt 0:00:02]} 28. Qd6 {[%emt 0:00:44]} Qe4 {[%emt 0:02:33]} 29. Qf6 {[%emt 0:01:17]} Ke8 {[%emt 0:00:57]} 30. Ne5 {[%emt 0:00:30]} 1-0

[Event "SWE-ch Class 1 2019"]
[Site "Eskilstuna"]
[Date "2019.07.14"]
[Round "7.8"]
[White "Akerlund, Fredrik"]
[Black "Carlsson, Gustav"]
[Result "1/2-1/2"]
[ECO "A25"]
[WhiteElo "1815"]
[BlackElo "1982"]
[Annotator "NA"]
[PlyCount "95"]
[EventDate "2019.07.06"]
[EventType "tourn"]
[EventCountry "SWE"]
[SourceTitle "playchess.com"]
[Source "ChessBase"]
[SourceQuality "1"]
[TimeControl "40/5400+30:1800+30"]

1. c4 {[%emt 0:00:00]} e5 {[%emt 0:00:16]} 2. g3 {[%emt 0:00:07]} Nc6 {[%emt 0:00:13]} 3. Bg2 {[%emt 0:00:12]} g6 {[%emt 0:00:19]} 4. e3 {[%emt 0:01:05]} Bg7 {[%emt 0:00:16]} 5. Ne2 {[%emt 0:00:14]} Nge7 {[%emt 0:00:41]} 6. Nbc3 {[%emt 0:00:25]} O-O {[%emt 0:00:39]} 7. O-O {[%emt 0:04:44]} d6 {[%emt 0:00:33]} 8. d4 {[%emt 0:03:37]} exd4 {[%emt 0:00:39]} 9. Nxd4 {[%emt 0:00:46]} Bd7 {[%emt 0:08:58]} 10. b3 {[%emt 0:04:38]} Qc8 {[%emt 0:09:26]} 11. Bb2 {[%emt 0:01:43]} Bh3 {[%emt 0:00:42]} 12. Qd2 {[%emt 0:07:41]} h5 {[%emt 0:03:18]} 13. Rad1 {[%emt 0:04:19]} Bxg2 {[%emt 0:01:37]} 14. Kxg2 {[%emt 0:00:08]} h4 {[%emt 0:00:19]} 15. f3 {[%emt 0:02:56]} hxg3 {[%emt 0:00:46]} 16. hxg3 {[%emt 0:00:17]} Re8 {[%emt 0:00:20]} 17. Nxc6 {[%emt 0:02:17]} Nxc6 {[%emt 0:03:01]} 18. Nd5 {[%emt 0:01:49]} Ne5 {[%emt 0:01:53]} 19. e4 {[%emt 0:05:26]} c6 {[%emt 0:11:46]} 20. Ne3 {[%emt 0:01:29]} Rd8 {[%emt 0:00:26]} 21. f4 {[%emt 0:10:18]} Ng4 {[%emt 0:01:06]} 22. Bxg7 {[%emt 0:00:20]} Kxg7 {[%emt 0:03:03]} 23. f5 {[%emt 0:00:40]} Nxe3+ {[%emt 0:04:51]} 24. Qxe3 {[%emt 0:00:48]} f6 {[%emt 0:03:31]} 25. Rh1 {[%emt 0:14:48]} g5 {[%emt 0:06:28]} 26. Qf3 {[%emt 0:01:37]} Rh8 {[%emt 0:00:58]} 27. Rxh8 {[%emt 0:01:17]} Qxh8 {[%emt 0:00:23]} 28. Rxd6 {[%emt 0:03:37]} Rd8 {[%emt 0:04:10]} 29. Qd3 {[%emt 0:10:54]} Rxd6 {[%emt 0:00:19]} 30. Qxd6 {[%emt 0:00:01]} Qe8 {[%emt 0:00:21]} 31. Qd4 {[%emt 0:02:17]} Qh5 {[%emt 0:01:15]} 32. Qf2 {[%emt 0:03:06]} Qd1 {[%emt 0:06:54]} 33. Qxa7 {[%emt 0:01:58]} Qe2+ {[%emt 0:00:21]} 34. Qf2 {[%emt 0:01:36]} Qxe4+ {[%emt 0:00:15]} 35. Qf3 {[%emt 0:05:12]} Qc2+ {[%emt 0:00:27]} 36. Kh3 {[%emt 0:00:43]} Qxa2 {[%emt 0:02:44]} 37. Qh5 {[%emt 0:01:03]} Qa1 {[%emt 0:00:28]} 38. Qg6+ {[%emt 0:00:55]} Kf8 {[%emt 0:00:30]} 39. Qh6+ {[%emt 0:00:29]} Ke7 {[%emt 0:03:03]} 40. Qg7+ {[%emt 0:00:48]} Kd6 {[%emt 0:00:10]} 41. Qxb7 {[%emt 0:33:11]} Qh1+ {[%emt 0:30:25]} 42. Kg4 {[%emt 0:00:11]} Qe4+ {[%emt 0:07:57]} 43. Kh5 {[%emt 0:00:00]} Qxf5 {[%emt 0:00:00]} 44. Qb8+ {[%emt 0:00:00]} Kc5 {[%emt 0:00:00]} 45. Qf8+ {[%emt 0:00:00]} Kb6 {[%emt 0:00:00]} 46. Qb8+ {[%emt 0:00:00]} Ka6 {[%emt 0:00:00]} 47. Qa8+ {[%emt 0:00:00]} Kb6 {[%emt 0:00:00]} 48. Qb8+ {[%emt 0:00:00]} 1/2-1/2

[Event "SWE-ch Class 1 2019"]
[Site "Eskilstuna"]
[Date "2019.07.14"]
[Round "7.9"]
[White "Carnstam, Tomas"]
[Black "Eriksson, Joel"]
[Result "0-1"]
[ECO "A40"]
[WhiteElo "1967"]
[BlackElo "1998"]
[Annotator "NA"]
[PlyCount "60"]
[EventDate "2019.07.06"]
[EventType "tourn"]
[EventCountry "SWE"]
[SourceTitle "playchess.com"]
[Source "ChessBase"]
[SourceQuality "1"]
[TimeControl "40/5400+30:1800+30"]

1. c4 {[%emt 0:00:15]} b6 {[%emt 0:00:00]} 2. d4 {[%emt 0:00:43]} Bb7 {[%emt 0:00:00]} 3. Nc3 {[%emt 0:02:38]} e6 {[%emt 0:00:00]} 4. e4 {[%emt 0:00:30]} Bb4 {[%emt 0:00:00]} 5. Qd3 {[%emt 0:07:30]} Qh4 {[%emt 0:03:25]} 6. d5 {[%emt 0:02:12]} Nf6 {[%emt 0:09:56]} 7. Bd2 {[%emt 0:00:25]} Bxc3 {[%emt 0:05:36]} 8. Bxc3 {[%emt 0:00:03]} Qxe4+ {[%emt 0:00:20]} 9. Qxe4 {[%emt 0:00:24]} Nxe4 {[%emt 0:00:05]} 10. Bxg7 {[%emt 0:13:03]} Rg8 {[%emt 0:00:10]} 11. Be5 {[%emt 0:07:07]} d6 {[%emt 0:05:47]} 12. Bd4 {[%emt 0:06:06]} exd5 {[%emt 0:03:38]} 13. f3 {[%emt 0:01:49]} Nc5 {[%emt 0:04:07]} 14. Kf2 {[%emt 0:06:07]} Nbd7 {[%emt 0:03:12]} 15. b4 {[%emt 0:03:49]} Ne6 {[%emt 0:00:41]} 16. Bb2 {[%emt 0:00:51]} O-O-O {[%emt 0:05:52]} 17. Rd1 {[%emt 0:02:32]} Ne5 {[%emt 0:07:39]} 18. cxd5 {[%emt 0:03:11]} Nf4 {[%emt 0:02:12]} 19. a3 {[%emt 0:10:08]} Nxd5 {[%emt 0:05:43]} 20. Rd4 {[%emt 0:01:51]} Rde8 {[%emt 0:21:01]} 21. g3 {[%emt 0:09:39]} c5 {[%emt 0:03:19]} 22. bxc5 {[%emt 0:03:00]} dxc5 {[%emt 0:00:39]} 23. Re4 {[%emt 0:01:47]} f6 {[%emt 0:01:07]} 24. Bb5 {[%emt 0:00:56]} Re7 {[%emt 0:01:05]} 25. Bxe5 {[%emt 0:05:36]} fxe5 {[%emt 0:01:07]} 26. Bc4 {[%emt 0:00:31]} Rd8 {[%emt 0:00:29]} 27. Rh4 {[%emt 0:02:28]} Nc3 {[%emt 0:01:14]} 28. Ne2 {[%emt 0:01:25]} Nd1+ {[%emt 0:00:53]} 29. Kg2 {[%emt 0:02:50]} e4 {[%emt 0:01:20]} 30. Kh3 {[%emt 0:00:57]} Nf2+ {[%emt 0:02:26]} 0-1

[Event "SWE-ch Class 1 2019"]
[Site "Eskilstuna"]
[Date "2019.07.14"]
[Round "7.10"]
[White "Karlsson, Roger"]
[Black "Johansson, Roland"]
[Result "1/2-1/2"]
[ECO "B26"]
[WhiteElo "1915"]
[BlackElo "2002"]
[Annotator "NA"]
[PlyCount "70"]
[EventDate "2019.07.06"]
[EventType "tourn"]
[EventCountry "SWE"]
[SourceTitle "playchess.com"]
[Source "ChessBase"]
[SourceQuality "1"]
[TimeControl "40/5400+30:1800+30"]

1. e4 {[%emt 0:00:31]} c5 {[%emt 0:00:30]} 2. Nc3 {[%emt 0:01:27]} Nc6 {[%emt 0:00:04]} 3. g3 {[%emt 0:02:23]} g6 {[%emt 0:00:05]} 4. Bg2 {[%emt 0:00:03]} Bg7 {[%emt 0:00:05]} 5. d3 {[%emt 0:00:13]} d6 {[%emt 0:01:14]} 6. Be3 {[%emt 0:00:12]} Nf6 {[%emt 0:02:17]} 7. h3 {[%emt 0:00:10]} Bd7 {[%emt 0:01:36]} 8. Qd2 {[%emt 0:00:23]} Rb8 {[%emt 0:06:45]} 9. Nge2 {[%emt 0:03:35]} b5 {[%emt 0:05:09]} 10. Bh6 {[%emt 0:01:44]} O-O {[%emt 0:01:40]} 11. h4 {[%emt 0:05:11]} e6 {[%emt 0:26:07]} 12. h5 {[%emt 0:18:10]} b4 {[%emt 0:10:56]} 13. Nd1 {[%emt 0:07:43]} Bxh6 {[%emt 0:14:55]} 14. Qxh6 {[%emt 0:00:55]} Ng4 {[%emt 0:00:12]} 15. Qd2 {[%emt 0:03:17]} Nf6 {[%emt 0:01:11]} 16. f4 {[%emt 0:13:49]} Qe7 {[%emt 0:04:00]} 17. Ne3 {[%emt 0:05:32]} e5 {[%emt 0:02:39]} 18. f5 {[%emt 0:05:33]} g5 {[%emt 0:00:25]} 19. h6 {[%emt 0:02:41]} Kh8 {[%emt 0:00:55]} 20. g4 {[%emt 0:05:03]} Qd8 {[%emt 0:00:31]} 21. Ng3 {[%emt 0:01:30]} Ne8 {[%emt 0:00:16]} 22. Nd5 {[%emt 0:06:41]} f6 {[%emt 0:00:34]} 23. Bf3 {[%emt 0:01:42]} Ne7 {[%emt 0:02:15]} 24. Nh5 {[%emt 0:00:58]} Ng8 {[%emt 0:01:33]} 25. Qh2 {[%emt 0:03:15]} Nc7 {[%emt 0:02:57]} 26. Ng7 {[%emt 0:00:26]} Bc8 {[%emt 0:01:18]} 27. Qh5 {[%emt 0:02:35]} Bd7 {[%emt 0:01:10]} 28. Kf2 {[%emt 0:00:25]} Be8 {[%emt 0:02:01]} 29. Qh2 {[%emt 0:00:08]} Bd7 {[%emt 0:00:07]} 30. Kg3 {[%emt 0:00:18]} Rf7 {[%emt 0:01:48]} 31. Qh5 {[%emt 0:02:15]} Rf8 {[%emt 0:00:13]} 32. Qh2 {[%emt 0:02:12]} Nxd5 33. exd5 Nxh6 {[%emt 0:00:02]} 34. Ne6 {[%emt 0:00:14]} Rf7 35. Ng7 {[%emt 0:00:14]} Ng8 1/2-1/2